{"text_format":"1","workbook":"xlsx","n_sheets":12,"sheets":["Form 120P-WA-EB","Multiple Sites","Option to Assign Payment","Optional Demographic Questions","HVAC & Water Heating Equipment ","Lodging & Foodservice Equipment","Insulation","Eligible Spaces","Lookups","Grocery Equipment","Greenhouses","Admin Tools"],"not_rendered":{"charts":0,"images":11,"macros":1,"external_links":2,"defined_names":66,"comments":0,"pivot_tables":0},"unopened":[],"bounds":{"document_bytes":16777216,"sheet_cells":100000,"rows_first":2000,"rows_last":500,"rows_between":2000,"halvings":0,"cell_chars":16384,"cell_head_chars":4096},"cells_cut":0,"cells_raw":0,"read":"whole","date_system":"1900"}

{"sheet":"Form 120P-WA-EB","index":0,"n_rows":76,"n_cols":43,"rows_kept":76,"cut":false,"hidden":false,"merged":[[30,35,30,38],[70,1,70,38],[71,1,71,30],[73,1,73,27],[73,28,73,38],[62,33,62,38],[64,1,64,38],[65,2,65,38],[67,2,67,15],[67,17,67,32],[67,34,67,37],[58,1,58,6],[58,7,58,9],[60,1,60,6],[60,7,60,9],[62,1,62,6],[107,1,108,21],[108,23,108,38],[139,23,142,38],[143,23,145,38],[76,1,89,21],[76,23,86,38],[87,23,92,38],[90,1,98,21],[93,23,96,38],[97,23,100,38],[99,1,102,21],[101,23,104,38],[103,1,106,21],[105,23,107,38],[62,7,62,9],[56,1,56,38],[50,1,50,19],[52,1,52,8],[52,9,52,12],[52,13,52,14],[52,16,52,19],[52,30,52,38],[54,1,54,9],[54,11,54,19],[54,30,54,38],[55,1,55,9],[55,11,55,18],[46,21,46,24],[46,25,46,38],[19,21,19,29],[19,31,19,38],[22,21,22,28],[22,29,22,32],[22,33,22,34],[22,36,22,38],[25,21,25,28],[25,30,25,38],[37,21,37,38],[43,21,43,26],[43,27,43,38],[29,21,29,33],[29,35,29,38],[30,21,30,33],[16,21,16,38],[9,21,9,23],[9,24,9,29],[9,30,9,32],[9,33,9,38],[13,21,13,38]]}
[]
[null,"Existing Buildings Standard Incentives - NW Natural Washington"]
[null,"Commercial Buildings | Incentive Application | Form 120P-WA-EB"]
[]
[]
[]
[null,"TRC is a Program Management Contractor for Energy Trust of Oregon."]
[]
[null,null,null,null,null,null,null,null,null,null,null,null,null,null,null,null,null,null,null,null,null,"Program Use Only",null,null,null,null,null,null,null,null,null,null,null,null,null,null,null,null,{"$f":"Version","v":"v2025.2"}]
[null,null,null,null,null,null,null,null,null,null,null,null,null,null,null,null,null,null,null,null,null,"Reference ID",null,null,null,null,null,null,null,null,"PT ID"]
[]
[null,null,null,null,null,null,null,null,null,null,null,null,null,null,null,null,null,null,null,null,null,"Participant Information"]
[]
[]
[null,null,null,null,null,null,null,null,null,null,null,null,null,null,null,null,null,null,null,null,null,"Legal Business Name (must match Participant's submitted W-9)"]
[]
[]
[null,null,null,null,null,null,null,null,null,null,null,null,null,null,null,null,null,null,null,null,null,"Assumed Business Name or DBA"]
[]
[]
[null,null,null,null,null,null,null,null,null,null,null,null,null,null,null,null,null,null,null,null,null,"Contact Name",null,null,null,null,null,null,null,null,null,"Title"]
[]
[]
[null,null,null,null,null,null,null,null,null,null,null,null,null,null,null,null,null,null,null,null,null,"Participant Mailing Address",null,null,null,null,null,null,null,"City",null,null,null,"State",null,null,"Zip"]
[]
[]
[null,null,null,null,null,null,null,null,null,null,null,null,null,null,null,null,null,null,null,null,null,"Primary Phone",null,null,null,null,null,null,null,null,"Email Address"]
[]
[null,null,null,null,null,null,null,null,null,null,null,null,null,null,null,null,null,null,null,null,null,"Business Type:",null,null,null,null,null,null,null,null,null,null,null,null,null,null,null,null,null,null,null,0]
[null,null,null,null,null,null,null,null,null,null,null,null,null,null,null,null,null,null,null,null,null,"How many locations does your business have?"]
[null,null,null,null,null,null,null,null,null,null,null,null,null,null,null,null,null,null,null,null,null,"How many employees does your business have?"]
[null,null,null,null,null,null,null,null,null,null,null,null,null,null,null,null,null,null,null,null,null,"Participant  Role:",null,null,null,null,null,null,null,null,null,null,null,null,null,null,null,null,null,null,null,0]
[null,null,null,null,null,null,null,null,null,null,null,null,null,null,null,null,null,null,null,null,null,"Is your firm/organization a Community Service Provider?"]
[null,null,null,null,null,null,null,null,null,null,null,null,null,null,null,null,null,null,null,null,null,"Existing Building Project Type:"]
[]
[]
[]
[]
[null,null,null,null,null,null,null,null,null,null,null,null,null,null,null,null,null,null,null,null,null,"Business/Project Name"]
[]
[null,null,null,null,null,null,null,null,null,null,null,null,null,null,null,null,null,null,null,null,null,"Utility Information "]
[]
[null,null,null,null,null,null,null,null,null,null,null,null,null,null,null,null,null,null,null,null,null,"(You must attach a copy of your most recent utility bill)"]
[null,null,null,null,null,null,null,null,null,null,null,null,null,null,null,null,null,null,null,null,null,"NW Natural Account #:"]
[]
[]
[null,null,null,null,null,null,null,null,null,null,null,null,null,null,null,null,null,null,null,null,null,"Rate Schedule:"]
[]
[]
[]
[null,"Project and Facility Information",null,null,null,null,null,null,null,null,null,null,null,null,null,null,null,null,null,null,null,"Primary Heating Fuel Source"]
[]
[null,null,null,null,null,null,null,null,null,null,null,null,null,null,null,null,null,null,null,null,null,null,null,null,null,null,null,null,null,null,null,null,null,null,null,null,null,null,null,null,null,0,{"$f":"VLOOKUP($AP53,Fuel,2)","v":"None"}]
[null,"Site Address",null,null,null,null,null,null,null,"City",null,null,null,"State",null,null,"Zip",null,null,null,null,"Water Heating Fuel Source"]
[null,null,null,null,null,null,null,null,null,null,null,null,null,null,null,null,null,null,null,null,null,null,null,null,null,null,null,null,null,null,null,null,null,null,null,null,null,null,null,null,null,0,{"$f":"VLOOKUP($AP55,Fuel,2)","v":"None"}]
[null,"Contact name for Site Visit",null,null,null,null,null,null,null,null,null,"Phone number for Site Visit"]
[null,"If requesting incentives for multiple locations,use the Multiple Sites section to list each location's site address, utility infomation, and heating fuel sources"]
[]
[null,"Total sq. ft. of Business",null,null,null,null,null,null,null,null,null,"Building Use Type:"]
[]
[null,"Year Built"]
[]
[]
[]
[null,"Participant Signature Please sign below either manually (ex. handwritten) or electronically (ex. typing your name, drawing your signature on a touchpad or touchscreen, inserting a digital signature, or, if available, by clicking the box)."]
[]
[]
[null,null,null,null,null,null,null,null,null,null,null,null,null,null,null,null,null,{"$f":"IF(ContactName=\"\",\"\",ContactName)","v":""}]
[null,null,"Authorized Representative Signature",null,null,null,null,null,null,null,null,null,null,null,null,null,null,"Name (printed)",null,null,null,null,null,null,null,null,null,null,null,null,null,null,null,null,"Date"]
[]
[null,"Grant Funding"]
[null,"Did you receive any other external funding, such as grants, that reduced your final out-of-pocket purchase/installation costs for any energy saving equipment listed in this application (See Project Cost Documentation for more information)?"]
[]
[null,"If yes, what is the total amount of external funding, Include additional information with submitted invoices."]
[]
[null,"TERMS AND CONDITIONS"]

{"sheet":"Multiple Sites","index":1,"n_rows":113,"n_cols":12,"rows_kept":113,"cut":false,"hidden":false,"merged":[]}
[]
["Existing Buildings Standard Incentives - NW Natural Washington"]
["Commercial Buildings | Incentive Application | Form 120P-WA-EB"]
[]
[]
[]
["TRC is a Program Management Contractor for Energy Trust of Oregon.",null,null,null,null,null,null,null,"Program Use Only",null,null,{"$f":"Version","v":"v2025.2"}]
[null,null,null,null,null,null,null,null,"Reference ID",{"$f":"IF(ReferenceID=\"\",\"\",ReferenceID)","v":""},"PT ID",{"$f":"IF(PTID=\"\",\"\",PTID)","v":""}]
["Multiple Sites"]
["Location\n(Bldg Name / Store #)","Site Address","City","State","Zip","Electric Utility","Electric Account Number","Gas Utility","Gas Account Number","Gas Rate Schedule","Primary Heating \nFuel Source","Water Heating \nFuel Source"]
[null,null,null,null,null,"(select)",null,"(select)",null,null,"(select)","(select)"]
[null,null,null,null,null,"(select)",null,"(select)",null,null,"(select)","(select)"]
[null,null,null,null,null,"(select)",null,"(select)",null,null,"(select)","(select)"]
[null,null,null,null,null,"(select)",null,"(select)",null,null,"(select)","(select)"]
[null,null,null,null,null,"(select)",null,"(select)",null,null,"(select)","(select)"]
[null,null,null,null,null,"(select)",null,"(select)",null,null,"(select)","(select)"]
[null,null,null,null,null,"(select)",null,"(select)",null,null,"(select)","(select)"]
[null,null,null,null,null,"(select)",null,"(select)",null,null,"(select)","(select)"]
[null,null,null,null,null,"(select)",null,"(select)",null,null,"(select)","(select)"]
[null,null,null,null,null,"(select)",null,"(select)",null,null,"(select)","(select)"]
[null,null,null,null,null,"(select)",null,"(select)",null,null,"(select)","(select)"]
[null,null,null,null,null,"(select)",null,"(select)",null,null,"(select)","(select)"]
[null,null,null,null,null,"(select)",null,"(select)",null,null,"(select)","(select)"]
[null,null,null,null,null,"(select)",null,"(select)",null,null,"(select)","(select)"]
[null,null,null,null,null,"(select)",null,"(select)",null,null,"(select)","(select)"]
[null,null,null,null,null,"(select)",null,"(select)",null,null,"(select)","(select)"]
[null,null,null,null,null,"(select)",null,"(select)",null,null,"(select)","(select)"]
[null,null,null,null,null,"(select)",null,"(select)",null,null,"(select)","(select)"]
[null,null,null,null,null,"(select)",null,"(select)",null,null,"(select)","(select)"]
[null,null,null,null,null,"(select)",null,"(select)",null,null,"(select)","(select)"]
[null,null,null,null,null,"(select)",null,"(select)",null,null,"(select)","(select)"]
[null,null,null,null,null,"(select)",null,"(select)",null,null,"(select)","(select)"]
[null,null,null,null,null,"(select)",null,"(select)",null,null,"(select)","(select)"]
[null,null,null,null,null,"(select)",null,"(select)",null,null,"(select)","(select)"]
[null,null,null,null,null,"(select)",null,"(select)",null,null,"(select)","(select)"]
[null,null,null,null,null,"(select)",null,"(select)",null,null,"(select)","(select)"]
[null,null,null,null,null,"(select)",null,"(select)",null,null,"(select)","(select)"]
[null,null,null,null,null,"(select)",null,"(select)",null,null,"(select)","(select)"]
[null,null,null,null,null,"(select)",null,"(select)",null,null,"(select)","(select)"]
[null,null,null,null,null,"(select)",null,"(select)",null,null,"(select)","(select)"]
[null,null,null,null,null,"(select)",null,"(select)",null,null,"(select)","(select)"]
[null,null,null,null,null,"(select)",null,"(select)",null,null,"(select)","(select)"]
[null,null,null,null,null,"(select)",null,"(select)",null,null,"(select)","(select)"]
[null,null,null,null,null,"(select)",null,"(select)",null,null,"(select)","(select)"]
[null,null,null,null,null,"(select)",null,"(select)",null,null,"(select)","(select)"]
[null,null,null,null,null,"(select)",null,"(select)",null,null,"(select)","(select)"]
[null,null,null,null,null,"(select)",null,"(select)",null,null,"(select)","(select)"]
[null,null,null,null,null,"(select)",null,"(select)",null,null,"(select)","(select)"]
[null,null,null,null,null,"(select)",null,"(select)",null,null,"(select)","(select)"]
[null,null,null,null,null,"(select)",null,"(select)",null,null,"(select)","(select)"]
[null,null,null,null,null,"(select)",null,"(select)",null,null,"(select)","(select)"]
[null,null,null,null,null,"(select)",null,"(select)",null,null,"(select)","(select)"]
[null,null,null,null,null,"(select)",null,"(select)",null,null,"(select)","(select)"]
[null,null,null,null,null,"(select)",null,"(select)",null,null,"(select)","(select)"]
[null,null,null,null,null,"(select)",null,"(select)",null,null,"(select)","(select)"]
[null,null,null,null,null,"(select)",null,"(select)",null,null,"(select)","(select)"]
[null,null,null,null,null,"(select)",null,"(select)",null,null,"(select)","(select)"]
[null,null,null,null,null,"(select)",null,"(select)",null,null,"(select)","(select)"]
[null,null,null,null,null,"(select)",null,"(select)",null,null,"(select)","(select)"]
[null,null,null,null,null,"(select)",null,"(select)",null,null,"(select)","(select)"]
[null,null,null,null,null,"(select)",null,"(select)",null,null,"(select)","(select)"]
[null,null,null,null,null,"(select)",null,"(select)",null,null,"(select)","(select)"]
[null,null,null,null,null,"(select)",null,"(select)",null,null,"(select)","(select)"]
[null,null,null,null,null,"(select)",null,"(select)",null,null,"(select)","(select)"]
[null,null,null,null,null,"(select)",null,"(select)",null,null,"(select)","(select)"]
[null,null,null,null,null,"(select)",null,"(select)",null,null,"(select)","(select)"]
[null,null,null,null,null,"(select)",null,"(select)",null,null,"(select)","(select)"]
[null,null,null,null,null,"(select)",null,"(select)",null,null,"(select)","(select)"]
[null,null,null,null,null,"(select)",null,"(select)",null,null,"(select)","(select)"]
[null,null,null,null,null,"(select)",null,"(select)",null,null,"(select)","(select)"]
[null,null,null,null,null,"(select)",null,"(select)",null,null,"(select)","(select)"]
[null,null,null,null,null,"(select)",null,"(select)",null,null,"(select)","(select)"]
[null,null,null,null,null,"(select)",null,"(select)",null,null,"(select)","(select)"]
[null,null,null,null,null,"(select)",null,"(select)",null,null,"(select)","(select)"]
[null,null,null,null,null,"(select)",null,"(select)",null,null,"(select)","(select)"]
[null,null,null,null,null,"(select)",null,"(select)",null,null,"(select)","(select)"]
[null,null,null,null,null,"(select)",null,"(select)",null,null,"(select)","(select)"]
[null,null,null,null,null,"(select)",null,"(select)",null,null,"(select)","(select)"]
[null,null,null,null,null,"(select)",null,"(select)",null,null,"(select)","(select)"]
[null,null,null,null,null,"(select)",null,"(select)",null,null,"(select)","(select)"]
[null,null,null,null,null,"(select)",null,"(select)",null,null,"(select)","(select)"]
[null,null,null,null,null,"(select)",null,"(select)",null,null,"(select)","(select)"]
[null,null,null,null,null,"(select)",null,"(select)",null,null,"(select)","(select)"]
[null,null,null,null,null,"(select)",null,"(select)",null,null,"(select)","(select)"]
[null,null,null,null,null,"(select)",null,"(select)",null,null,"(select)","(select)"]
[null,null,null,null,null,"(select)",null,"(select)",null,null,"(select)","(select)"]
[null,null,null,null,null,"(select)",null,"(select)",null,null,"(select)","(select)"]
[null,null,null,null,null,"(select)",null,"(select)",null,null,"(select)","(select)"]
[null,null,null,null,null,"(select)",null,"(select)",null,null,"(select)","(select)"]
[null,null,null,null,null,"(select)",null,"(select)",null,null,"(select)","(select)"]
[null,null,null,null,null,"(select)",null,"(select)",null,null,"(select)","(select)"]
[null,null,null,null,null,"(select)",null,"(select)",null,null,"(select)","(select)"]
[null,null,null,null,null,"(select)",null,"(select)",null,null,"(select)","(select)"]
[null,null,null,null,null,"(select)",null,"(select)",null,null,"(select)","(select)"]
[null,null,null,null,null,"(select)",null,"(select)",null,null,"(select)","(select)"]
[null,null,null,null,null,"(select)",null,"(select)",null,null,"(select)","(select)"]
[null,null,null,null,null,"(select)",null,"(select)",null,null,"(select)","(select)"]
[null,null,null,null,null,"(select)",null,"(select)",null,null,"(select)","(select)"]
[null,null,null,null,null,"(select)",null,"(select)",null,null,"(select)","(select)"]
[null,null,null,null,null,"(select)",null,"(select)",null,null,"(select)","(select)"]
[null,null,null,null,null,"(select)",null,"(select)",null,null,"(select)","(select)"]
[null,null,null,null,null,"(select)",null,"(select)",null,null,"(select)","(select)"]
[null,null,null,null,null,"(select)",null,"(select)",null,null,"(select)","(select)"]
[null,null,null,null,null,"(select)",null,"(select)",null,null,"(select)","(select)"]
[null,null,null,null,null,"(select)",null,"(select)",null,null,"(select)","(select)"]
[null,null,null,null,null,"(select)",null,"(select)",null,null,"(select)","(select)"]
[null,null,null,null,null,"(select)",null,"(select)",null,null,"(select)","(select)"]
[null,null,null,null,null,"(select)",null,"(select)",null,null,"(select)","(select)"]
[null,null,null,null,null,"(select)",null,"(select)",null,null,"(select)","(select)"]
[null,null,null,null,null,"(select)",null,"(select)",null,null,"(select)","(select)"]
[null,null,null,null,null,"(select)",null,"(select)",null,null,"(select)","(select)"]
[null,null,null,null,null,"(select)",null,"(select)",null,null,"(select)","(select)"]
[null,null,null,null,null,"(select)",null,"(select)",null,null,"(select)","(select)"]

{"sheet":"Option to Assign Payment","index":2,"n_rows":30,"n_cols":33,"rows_kept":30,"cut":false,"hidden":false,"merged":[[26,8,26,32],[25,8,25,31],[25,1,26,7],[29,22,30,31],[29,32,30,32],[29,1,30,3],[29,4,30,9],[29,20,30,21],[27,1,28,5],[27,6,27,15],[27,17,27,24],[27,26,27,27],[27,29,27,31],[28,6,28,12],[9,15,9,17],[9,18,9,23],[9,24,9,26],[9,27,9,32],[11,1,12,32],[20,8,20,31],[20,1,21,7],[21,8,21,31],[20,32,21,32],[15,1,16,32],[17,1,17,32],[18,1,19,7],[18,8,18,16],[18,18,18,27],[18,29,18,31],[19,8,19,16],[19,18,19,27],[19,29,19,31],[23,1,24,7],[23,8,23,16],[23,18,23,27],[23,29,23,31],[24,8,24,16],[24,18,24,27],[24,29,24,31]]}
[]
[null,"Existing Buildings Standard Incentives - NW Natural Washington"]
[null,"Commercial Buildings | Option to Assign Payment | Form 120P-WA-EB"]
[]
[]
[]
[null,"TRC is a Program Management Contractor for Energy Trust of Oregon."]
[]
[null,null,null,null,null,null,null,null,null,null,null,null,null,null,null,"Program Use Only",null,null,null,null,null,null,null,null,null,null,null,null,null,null,null,null,{"$f":"Version","v":"v2025.2"}]
[null,null,null,null,null,null,null,null,null,null,null,null,null,null,null,"Reference ID",null,null,{"$f":"IF(ReferenceID=\"\",\"\",ReferenceID)","v":""},null,null,null,null,null,"PT ID",null,null,{"$f":"IF(PTID=\"\",\"\",PTID)","v":""}]
[]
[null,"Option to Assign Incentive Payment\nPLEASE NOTE: The Energy Trust incentive payment will be made to Participant unless Participant and its designated Payee complete the section below to assign the payment to Payee. An IRS Form W-9 (Request for Taxpayer Identification Number and Certification) for the Payee named below must be attached if this option is selected."]
[]
[]
[null,"PARTICIPANT AND PAYEE"]
[null,"Both Participant and Payee understand and agree that if this Option to Assign Incentive Payment is selected the incentive check will be issued to the Payee named below at the address listed below and Energy Trust is not responsible for any tax liabilities that may be associated with the incentive payment. In addition, Participant understands that, notwithstanding this assignment, responsibility for complying with the terms and conditions of this incentive agreement shall continue to be the obligation of Participant, and Energy Trust's sole responsibility under this incentive agreement shall be to Participant. Accordingly, Payee understands that it shall have no rights against Energy Trust or the PMC with respect to such assignment or the payment of the incentive, and in the event that Energy Trust does not pay the incentive as a result of Participant's failure to comply with this agreement, Payee's sole recourse shall be against Participant. Participant directs Energy Trust to pay any incentive to which it is entitled to the Payee named below and waives all rights to directly receive the Energy Trust incentives for the identified energy-efficiency project. "]
[]
[null,"SIGNATURES: By my signature below, I represent to Energy Trust that I have read this agreement and am duly authorized to sign this Option to Assign Incentive Payment on behalf of the party for whom I am signing."]
[null,"On behalf of Participant\n(Authorized Representative)"]
[null,null,null,null,null,null,null,null,"(printed)",null,null,null,null,null,null,null,null,null,"(signature)",null,null,null,null,null,null,null,null,null,null,"Date"]
[null,"Participant \n",null,null,null,null,null,null,{"$f":"IF(BusinessName=\"\",\"\",BusinessName)","v":""}]
[null,null,null,null,null,null,null,null,"(Legal business name as shown on W-9)"]
[]
[null,"On behalf of Payee\n(Authorized Representative)"]
[null,null,null,null,null,null,null,null,"(printed)",null,null,null,null,null,null,null,null,null,"(signature)",null,null,null,null,null,null,null,null,null,null,"Date"]
[null,"Payee Name"]
[null,null,null,null,null,null,null,null,"(Must match submitted IRS Form W-9)"]
[null,"Mailing Address\n     (for check)"]
[null,null,null,null,null,null,"Street",null,null,null,null,null,null,null,null,null,null,"City",null,null,null,null,null,null,null,null,"State",null,null,"Zip"]
[null,"Phone",null,null,null,null,null,null,null,null,null,null,null,null,null,null,null,null,null,null,"Email"]

{"sheet":"Optional Demographic Questions","index":3,"n_rows":41,"n_cols":20,"rows_kept":41,"cut":false,"hidden":false,"merged":[[33,7,33,14],[39,21,39,28],[13,25,13,31],[15,8,15,14],[16,17,17,31],[18,0,19,14],[23,21,23,28],[28,17,28,32],[11,0,11,15],[0,0,0,31],[2,0,3,16],[2,17,3,31],[8,5,8,14],[9,24,9,31]]}
["Optional Commercial Participant Demographic Information (If completed, choose all that apply)"]
[]
["1. Which of the following best describes your position at the business?",null,null,null,null,null,null,null,null,null,null,null,null,null,null,null,null,"4. Which of the following racial and ethnic backgrounds best describe you? (select all that apply)"]
[]
[null,null,"Owner",null,null,null,null,null,null,null,null,null,null,null,null,null,null,null,null,"Asian/Asian American"]
[null,null,"Executive or decision-maker",null,null,null,null,null,null,null,null,null,null,null,null,null,null,null,null,"Black/African American"]
[null,null,"Manager",null,null,null,null,null,null,null,null,null,null,null,null,null,null,null,null,"Hispanic or Latino/a/x"]
[null,null,"Employee",null,null,null,null,null,null,null,null,null,null,null,null,null,null,null,null,"Middle Eastern or North African"]
[null,null,"Other Role:",null,null,null,null,null,null,null,null,null,null,null,null,null,null,null,null,"Native American/First Nations/Alaskan Native"]
[null,null,"Prefer not to answer",null,null,null,null,null,null,null,null,null,null,null,null,null,null,null,null,"Tribal Affiliation:"]
[null,null,null,null,null,null,null,null,null,null,null,null,null,null,null,null,null,null,null,"Native Hawaiian/Pacific Islander"]
["2. What best describes your gender?",null,null,null,null,null,null,null,null,null,null,null,null,null,null,null,null,null,null,"White"]
[null,null,"Female ",null,null,null,null,null,null,null,null,null,null,null,null,null,null,null,null,"Biracial/Multi-racial"]
[null,null,"Male ",null,null,null,null,null,null,null,null,null,null,null,null,null,null,null,null,"Prefer to self-describe:"]
[null,null,"Non-binary/third gender ",null,null,null,null,null,null,null,null,null,null,null,null,null,null,null,null,"Prefer not to answer"]
[null,null,"Prefer to self-describe:      "]
[null,null,"Prefer not to answer",null,null,null,null,null,null,null,null,null,null,null,null,null,null,"5. Which of the following describe your firm or organization? (select all that apply)  "]
[]
["3. What is the primary language(s) used at your business in Oregon? (select all that apply)",null,null,null,null,null,null,null,null,null,null,null,null,null,null,null,null,null,null,"Minority Owned (MBE)"]
[null,null,null,null,null,null,null,null,null,null,null,null,null,null,null,null,null,null,null,"Women Owned (WBE)"]
[null,null,"Arabic",null,null,null,null,null,null,null,null,null,null,null,null,null,null,null,null,"Small Business"]
[null,null,"Cantonese",null,null,null,null,null,null,null,null,null,null,null,null,null,null,null,null,"Service Disabled/Veteran Owned (SDVO)"]
[null,null,"English",null,null,null,null,null,null,null,null,null,null,null,null,null,null,null,null,"Disadvantaged Business Enterprise (DBE)"]
[null,null,"French",null,null,null,null,null,null,null,null,null,null,null,null,null,null,null,null,"Other:"]
[null,null,"German",null,null,null,null,null,null,null,null,null,null,null,null,null,null,null,null,"None of the above"]
[null,null,"Japanese",null,null,null,null,null,null,null,null,null,null,null,null,null,null,null,null,"Don’t know"]
[null,null,"Korean",null,null,null,null,null,null,null,null,null,null,null,null,null,null,null,null,"Prefer not to answer"]
[null,null,"Mandarin"]
[null,null,"Marshallese",null,null,null,null,null,null,null,null,null,null,null,null,null,null,"6. Please tell us how you heard about Energy Trust incentives"]
[null,null,"Russian",null,null,null,null,null,null,null,null,null,null,null,null,null,null,null,null,"Energy Trust team member"]
[null,null,"Spanish",null,null,null,null,null,null,null,null,null,null,null,null,null,null,null,null,"Contractor/Trade Ally"]
[null,null,"Tagalog",null,null,null,null,null,null,null,null,null,null,null,null,null,null,null,null,"Energy Trust website"]
[null,null,"Vietnamese ",null,null,null,null,null,null,null,null,null,null,null,null,null,null,null,null,"Email"]
[null,null,"Another language:",null,null,null,null,null,null,null,null,null,null,null,null,null,null,null,null,"Direct Mail"]
[null,null,"Prefer not to answer",null,null,null,null,null,null,null,null,null,null,null,null,null,null,null,null,"Trade Association/Conference"]
[null,null,null,null,null,null,null,null,null,null,null,null,null,null,null,null,null,null,null,"Community event /Community organization  "]
[null,null,null,null,null,null,null,null,null,null,null,null,null,null,null,null,null,null,null,"Online (advertisement, social media or search engine)"]
[null,null,null,null,null,null,null,null,null,null,null,null,null,null,null,null,null,null,null,"Newspaper/Magazine"]
[null,null,null,null,null,null,null,null,null,null,null,null,null,null,null,null,null,null,null,"Recommended by a friend or colleague "]
[null,null,null,null,null,null,null,null,null,null,null,null,null,null,null,null,null,null,null,"Other:"]
[null,null,null,null,null,null,null,null,null,null,null,null,null,null,null,null,null,null,null,"Prefer not to answer"]

{"sheet":"HVAC & Water Heating Equipment ","index":4,"n_rows":74,"n_cols":19,"rows_kept":74,"cut":false,"hidden":false,"merged":[[21,1,23,1],[26,1,28,1],[26,2,26,14],[27,2,27,4],[27,8,27,10],[43,2,43,14],[40,2,40,14],[46,1,54,1],[54,2,54,14],[51,2,51,7],[49,11,49,13],[52,2,52,14],[53,2,53,14],[49,6,49,7],[49,2,49,3],[49,8,49,10],[49,4,49,5],[31,2,31,14],[30,2,30,14],[26,16,28,16],[26,15,28,15],[41,18,42,18],[41,2,42,14],[41,16,42,16],[55,2,56,14],[55,1,58,1],[47,2,48,14],[46,2,46,14],[55,18,58,18],[55,17,58,17],[55,16,58,16],[55,15,58,15],[41,17,42,17],[44,16,45,16],[57,2,57,3],[43,1,45,1],[44,2,45,14],[29,15,30,18],[29,2,29,14],[29,1,34,1],[32,2,32,14],[33,2,33,14],[34,2,34,14],[18,18,20,18],[18,16,20,16],[23,11,23,13],[21,15,24,15],[19,15,20,15],[18,2,20,14],[22,2,22,14],[17,17,20,17],[21,16,24,16],[21,18,24,18],[17,2,17,14],[21,2,21,14],[21,17,24,17],[3,1,4,14],[10,2,10,14],[14,2,14,14],[15,2,15,14],[14,1,16,1],[16,2,16,14],[11,1,13,1],[11,2,11,14],[44,17,45,17],[17,1,20,1],[40,1,42,1],[25,2,25,14],[23,6,23,10],[11,16,13,16],[12,7,12,12],[38,2,38,14],[14,15,14,18],[11,17,13,17],[11,18,13,18],[11,15,13,15],[27,5,27,6],[27,11,27,13],[26,18,28,18],[26,17,28,17],[46,15,51,18],[44,18,45,18],[63,17,69,17],[63,18,69,18],[59,17,62,17],[59,18,62,18],[57,11,57,12],[72,1,73,16],[69,2,69,14],[70,2,70,14],[59,1,69,1],[59,15,62,15],[59,16,62,16],[66,2,66,4],[66,5,66,14],[59,2,59,14],[63,15,69,15],[63,16,69,16],[57,4,57,5],[57,6,57,7],[57,8,57,10],[65,2,65,4]]}
[]
[null,"Existing Buildings Standard Incentives ¾ NW Natural Washington"]
[null,"Commercial Buildings | Incentive Application | Form 120P-WA-EB"]
[]
[]
[]
[null,"TRC is a Program Management Contractor for Energy Trust of Oregon.",null,null,null,null,null,null,null,null,null,null,null,null,null,"Program Use Only",null,null,{"$f":"Version","v":"v2025.2"}]
[null,null,null,null,null,null,null,null,null,null,null,null,null,null,null,"Reference ID",{"$f":"IF(ReferenceID=\"\",\"\",ReferenceID)","v":""},"PTID",{"$f":"IF(PTID=\"\",\"\",PTID)","v":""}]
[]
[null,"HVAC and Water Heating"]
[null,"EQUIPMENT","DESCRIPTION/ REQUIREMENTS",null,null,null,null,null,null,null,null,null,null,null,null,"INCENTIVE PER UNIT","QUANTITY","INCENTIVE TOTAL","INSTALLED COST"]
[null," Advanced Rooftop\n Controls (ARC) - \n Full Retrofit",null,null,null,null,null,null,null,null,null,null,null,null,null,300,null,{"$f":"P12*Q12","v":0}]
[]
[]
[null," Infrared Radiant\n Heater"]
[null,null,"Non-Modulating",null,null,null,null,null,null,null,null,null,null,null,null,4,null,{"$f":"P16*Q16","v":0}]
[null,null,"Modulating",null,null,null,null,null,null,null,null,null,null,null,null,5,null,{"$f":"P17*Q17","v":0}]
[null," Commercial\n Condensing Tank\n Water Heater",null,null,null,null,null,null,null,null,null,null,null,null,null,3.5,null,{"$f":"P18*Q18","v":0}]
[null,null,"\n",null,null,null,null,null,null,null,null,null,null,null,null,"Bonus incentive:"]
[null,null,null,null,null,null,null,null,null,null,null,null,null,null,null,0.35]
[]
[null," Commercial\n Condensing\n Tankless Water\n Heater under 200\n kBtu/h input",null,null,null,null,null,null,null,null,null,null,null,null,null,140,null,{"$f":"P22*Q22","v":0}]
[null,null,"Is there an existing water storage tank attached?"]
[null,null,null,null,null,null,"If yes, what is the capacity?"]
[]
[null," Commercial\n Condensing\n Tankless Water\n Heater/Boiler\n at least 200 kBtu/h\n input",null,null,null,null,null,null,null,null,null,null,null,null,null,1.4,null,{"$f":"P26*Q26","v":0}]
[null,"Destratification Fans",null,null,null,null,null,null,null,null,null,null,null,null,null,2000,null,{"$f":"P27*Q27","v":0}]
[null,null,"Ceiling Height: ",null,null,null,null,null,"Fan Diameter:"]
[]
[null,"Domestic Hot Water (DHW) Recirculation Pump Controls"]
[null,null,"Control type: "]
[null,null,"1/4 horsepower (hp) and below",null,null,null,null,null,null,null,null,null,null,null,null,180,null,{"$f":"P32*Q32","v":0}]
[null,null,"More than 1/4 hp up to 1.25 hp",null,null,null,null,null,null,null,null,null,null,null,null,300,null,{"$f":"P33*Q33","v":0}]
[null,null,"More than 1.25 hp up to 2.5 hp",null,null,null,null,null,null,null,null,null,null,null,null,600,null,{"$f":"P34*Q34","v":0}]
[null,null,"More than 2.5 hp up to 5 hp",null,null,null,null,null,null,null,null,null,null,null,null,1400,null,{"$f":"P35*Q35","v":0}]
[]
[]
[null," HVAC and Water Heating continued"]
[null,"EQUIPMENT","DESCRIPTION/ REQUIREMENTS",null,null,null,null,null,null,null,null,null,null,null,null,"INCENTIVE PER UNIT","QUANTITY","INCENTIVE TOTAL","INSTALLED COST"]
[null," Commercial\n Condensing Gas\n Furnace",null,null,null,null,null,null,null,null,null,null,null,null,null,8.25,null,{"$f":"P40*(Q40)","v":0}]
[null," Gas-fired\n High-Efficiency\n Condensing HVAC\n Boiler",null,null,null,null,null,null,null,null,null,null,null,null,null,6.5,null,{"$f":"P41*(Q41)","v":0}]
[null,null,null,null,null,null,null,null,null,null,null,null,null,null,null,"Bonus incentive:",null,{"$f":"P43*Q42","v":0}]
[null,null,null,null,null,null,null,null,null,null,null,null,null,null,null,3.75]
[null," Modulating Boiler\n Burner",null,null,null,null,null,null,null,null,null,null,null,null,null,10,null,{"$f":"P44*Q44","v":0}]
[null,null,null,null,null,null,null,null,null,null,null,null,null,null,null,"Bonus incentive:",null,{"$f":"P46*Q45","v":0}]
[null,null,null,null,null,null,null,null,null,null,null,null,null,null,null,5]
[null," Steam Trap"]
[]
[]
[null,null,"Psig:",null,null,null,"Trap Size",null,null,null,null,"Occupied 24/7:"]
[]
[null,null,"How does this site use the steam?"]
[null,null,"Replaced steam trap (psig below 200)",null,null,null,null,null,null,null,null,null,null,null,null,500,null,{"$f":"P53*Q53","v":0}]
[null,null,"Repaired steam trap (50 psig or less)",null,null,null,null,null,null,null,null,null,null,null,null,400,null,{"$f":"P54*Q54","v":0}]
[null,null,"Repaired steam trap (psig more than 50 and less than 200)",null,null,null,null,null,null,null,null,null,null,null,null,500,null,{"$f":"P55*Q55","v":0}]
[null," Steam Trap\n - Dry Cleaners",null,null,null,null,null,null,null,null,null,null,null,null,null,350,null,{"$f":"P56*Q56","v":0}]
[]
[null,null,"Psig:",null,null,null,null,null,"Trap Size:"]
[]
[null," Commercial Smart\n Thermostat ",null,null,null,null,null,null,null,null,null,null,null,null,null,400,null,{"$f":"P60*Q60","v":0}]
[]
[]
[]
[null,null,null,null,null,null,null,null,null,null,null,null,null,null,null,500,null,{"$f":"P64*Q64","v":0}]
[]
[null,null,"If applicable:"]
[]
[]
[]
[null,null,"Is there cooling onsite?"]
[null,null,"Non-grocery sites",null,null,null,null,null,null,null,null,null,null,null,null,400]
[]
[null,"TOTALS FOR HVAC AND WATER HEATING",null,null,null,null,null,null,null,null,null,null,null,null,null,null,null,"TOTAL \nINCENTIVES","TOTAL\nINSTALLED COST"]
[null,null,null,null,null,null,null,null,null,null,null,null,null,null,null,null,null,{"$f":"SUM(R12,R16:R26,R40:R44,R53:R70,R32:R35)","v":0},{"$f":"SUM(S12,S16:S26,S40:S44,S53:S70,S32:S35)","v":0}]

{"sheet":"Lodging & Foodservice Equipment","index":5,"n_rows":69,"n_cols":12,"rows_kept":69,"cut":false,"hidden":false,"merged":[[27,1,32,1],[27,8,27,11],[24,8,24,11],[24,1,26,1],[26,2,26,7],[25,2,25,7],[30,2,30,7],[29,2,29,7],[28,2,28,7],[27,2,27,7],[24,2,24,7],[11,1,18,1],[11,2,11,7],[45,9,46,9],[45,10,46,10],[19,2,19,7],[39,8,40,11],[12,2,12,3],[13,2,13,3],[22,2,22,3],[20,1,23,1],[39,1,47,1],[42,10,43,10],[20,2,20,7],[40,2,40,7],[34,2,34,7],[42,11,43,11],[67,1,68,9],[61,2,61,7],[61,1,63,1],[66,1,66,11],[62,9,63,9],[62,10,63,10],[62,11,63,11],[62,2,63,7],[10,2,10,7],[16,2,16,7],[18,2,18,7],[45,11,46,11],[14,2,14,4],[17,2,17,7],[39,2,39,7],[21,2,21,3],[20,11,23,11],[20,8,23,8],[20,9,23,9],[20,10,23,10],[42,9,43,9],[35,2,35,7],[32,2,32,7],[31,2,31,7],[50,10,60,10],[50,11,60,11],[53,2,53,7],[54,2,54,7],[55,2,55,3],[55,4,55,5],[55,6,55,7],[50,2,50,7],[51,2,52,7],[58,6,58,7],[59,2,59,3],[59,4,59,5],[59,6,59,7],[50,1,60,1],[50,8,60,8],[50,9,60,9],[49,2,49,7],[48,2,48,7],[56,2,56,3],[56,4,56,5],[56,6,56,7],[57,2,57,3],[57,4,57,5],[57,6,57,7],[60,2,60,3],[60,4,60,5],[60,6,60,7],[58,2,58,3],[58,4,58,5],[41,2,43,7],[44,2,46,7],[47,2,47,7],[36,8,36,11],[36,1,38,1],[36,2,36,7],[38,2,38,7],[37,2,37,7]]}
[]
[null,"Existing Buildings Standard Incentives ¾ NW Natural Washington"]
[null,"Commercial Buildings | Incentive Application | Form 120P-WA-EB"]
[]
[]
[]
[null,"TRC is a Program Management Contractor for Energy Trust of Oregon.",null,null,null,null,null,null,"Program Use Only",null,null,{"$f":"Version","v":"v2025.2"}]
[null,null,null,null,null,null,null,null,"Reference ID",{"$f":"IF(ReferenceID=\"\",\"\",ReferenceID)","v":""},"PTID",{"$f":"IF(PTID=\"\",\"\",PTID)","v":""}]
[]
[null,"Lodging and Foodservice"]
[null,"EQUIPMENT","REQUIREMENTS",null,null,null,null,null,"INCENTIVE PER UNIT","QUANTITY","INCENTIVE TOTAL","INSTALLED COST"]
[null," Commercial \n Swimming Pool\n Heater"]
[null,null,"   Pool Location: "]
[null,null,"   Pool Cover:"]
[null,null,"   Number of heaters serving pool: "]
[]
[null,null,"Non-condensing Heater, Covered",null,null,null,null,null,0.9,null,{"$f":"I17*J17","v":0}]
[null,null,"Non-condensing Heater, Not Covered",null,null,null,null,null,1,null,{"$f":"I18*J18","v":0}]
[null,null,"Condensing Heater, Covered",null,null,null,null,null,3,null,0]
[null,null,"Condensing Heater, Not Covered",null,null,null,null,null,5,null,0]
[null," Commercial Pool\n Cover",null,null,null,null,null,null,6,null,{"$f":"I21*J21","v":0}]
[null,null,"  Pool Location: "]
[null,null,"  Pool Heater Type:"]
[]
[null," Two-stage Gas Valve\n on Clothes Dryers"]
[null,null,"Sites with on-premises laundry",null,null,null,null,null,700,null,{"$f":"I26*J26","v":0}]
[null,null,"Coin-operated laundromats",null,null,null,null,null,400,null,0]
[null," Ozone Laundry\n Systems "]
[null,null,"Total laundry capacity is less than 75 lbs:",null,null,null,null,null,5000,null,{"$f":"I29*J29","v":0}]
[null,null,"Total laundry capacity is between 75 and 125 lbs:",null,null,null,null,null,7500,null,0]
[null,null,"Total laundry capacity is between 126 and 400 lbs:",null,null,null,null,null,15000,null,0]
[null,null,"Total laundry capacity is between 401 and 600 lbs:",null,null,null,null,null,25000,null,0]
[null,null,"Total laundry capacity is greater than 600 lbs:",null,null,null,null,null,30000,null,0]
[null,"Lodging and Foodservice continued"]
[null,"EQUIPMENT","REQUIREMENTS",null,null,null,null,null,"INCENTIVE PER UNIT","QUANTITY","INCENTIVE TOTAL","INSTALLED COST"]
[null," Commercial\n Laundry Washer,\n Common Areas",null,null,null,null,null,null,100,null,{"$f":"I36*J36","v":0},0]
[null," High Efficiency Gas\n Fryer"]
[null,null,"Standard Vat   ",null,null,null,null,null,1500,null,{"$f":"I38*J38","v":0},0]
[null,null,"Large Vat   ",null,null,null,null,null,2000,null,0,0]
[null," Gas-fired Automatic\n Conveyor Broiler"]
[]
[null,null,"Total conveyor belt width less than 20” ",null,null,null,null,null,2500,null,{"$f":"I42*J42","v":0}]
[null,null,null,null,null,null,null,null,"Bonus incentive:",null,{"$f":"I44*J43","v":0}]
[null,null,null,null,null,null,null,null,485]
[null,null,"Total conveyor belt width 20” to 26” ",null,null,null,null,null,3000,null,0,0]
[null,null,null,null,null,null,null,null,"Bonus incentive:",null,{"$f":"I47*J46","v":0}]
[null,null,null,null,null,null,null,null,485]
[null,null,"Total conveyor belt width greater than 26” ",null,null,null,null,null,3500,null,0,0]
[null," Gas Griddle - \n Single-sided",null,null,null,null,null,null,1000,null,0,0]
[null,"Pre-Rinse Spray Valve",null,null,null,null,null,null,30,null,{"$f":"I50*J50","v":0}]
[null," Gas Steam Cooker",null,null,null,null,null,null,1000,null,{"$f":"I51*J51","v":0},0]
[]
[]
[null,null,"Steam cooker type:"]
[null,null,"Gas Steam Cooker Efficiency Requirements"]
[null,null,"Number of Pans",null,"Cooking Energy Efficiency",null,"Idle Energy Rate"]
[null,null,3,null,"39% or higher",null,"2,440 Btu/h or lower"]
[null,null,4,null,"49% or higher",null,"5,850 Btu/h or lower"]
[null,null,5,null,"49% or higher",null,"7,027 Btu/h or lower"]
[null,null,6,null,"43% or higher",null,"2,770 Btu/h or lower"]
[null,null,"More than 6",null,"48% or higher",null,"11,287 Btu/h or lower"]
[null," Commercial Vent\n Hood with Demand\n Controlled Ventilation",null,null,null,null,null,null,1500,null,{"$f":"I62*J62","v":0},0]
[null,null,null,null,null,null,null,null,"Bonus incentive:",null,{"$f":"I64*J64","v":0}]
[null,null,null,null,null,null,null,null,350]
[]
[]
[]
[null,"TOTALS FOR LODGING AND FOODSERVICE",null,null,null,null,null,null,null,null,"TOTAL \nINCENTIVES","TOTAL\nINSTALLED COST"]
[null,null,null,null,null,null,null,null,null,null,{"$f":"SUM(K17:K24,K36,K42:K48,K49:K64,K29:K33,K26:K27,K38,K39)","v":0},{"$f":"SUM(L17:L24,L36,L42:L48,L49:L64,L29:L33,L26:L27,L38,L39)","v":0}]

{"sheet":"Insulation","index":6,"n_rows":51,"n_cols":10,"rows_kept":51,"cut":false,"hidden":false,"merged":[[38,8,39,8],[44,2,45,5],[33,6,36,9],[46,8,47,8],[46,9,47,9],[41,8,42,8],[38,9,39,9],[41,9,42,9],[44,8,45,8],[44,9,45,9],[49,1,50,7],[25,2,25,5],[33,2,33,5],[25,1,28,1],[46,7,47,7],[34,2,34,5],[44,7,45,7],[33,1,47,1],[41,7,42,7],[37,2,37,5],[40,2,40,5],[46,2,47,5],[43,2,43,5],[38,2,39,5],[41,2,42,5],[38,7,39,7],[15,1,18,1],[19,1,22,1],[11,1,14,1],[13,2,14,5],[27,2,28,5],[23,2,23,5],[23,1,24,1],[10,2,10,5],[11,2,11,5],[15,2,15,5],[19,2,19,5],[32,2,32,5],[27,7,28,7],[27,9,28,9],[27,8,28,8],[21,7,22,7],[21,8,22,8],[25,9,26,9],[23,9,24,9],[23,6,24,6],[23,7,24,7],[23,8,24,8],[25,6,26,6],[25,7,26,7],[25,8,26,8],[17,7,18,7],[17,8,18,8],[17,9,18,9],[21,9,22,9],[21,2,22,5],[17,2,18,5],[19,6,20,6],[19,7,20,7],[19,8,20,8],[19,9,20,9],[11,6,12,6],[11,7,12,7],[11,8,12,8],[11,9,12,9],[15,6,16,6],[15,7,16,7],[15,8,16,8],[15,9,16,9],[13,7,14,7],[13,8,14,8],[13,9,14,9]]}
[]
[null,"Existing Buildings Standard Incentives ¾ NW Natural Washington"]
[null,"Commercial Buildings | Incentive Application | Form 120P-WA-EB"]
[]
[]
[]
[null,"TRC is a Program Management Contractor for Energy Trust of Oregon.",null,null,null,null,"Program Use Only",null,null,{"$f":"Version","v":"v2025.2"}]
[null,null,null,null,null,null,"Reference ID",{"$f":"IF(ReferenceID=\"\",\"\",ReferenceID)","v":""},"PTID",{"$f":"IF(PTID=\"\",\"\",PTID)","v":""}]
[]
[null,"Insulation"]
[null,"EQUIPMENT","REQUIREMENTS",null,null,null,"INCENTIVE PER UNIT","QUANTITY","INCENTIVE TOTAL","INSTALLED COST"]
[null," Attic Insulation or\n Below Deck Roof\n Insulation,\n R-9 or less\n to at least R-25",null,null,null,null,0.9,null,{"$f":"G12*H12","v":0}]
[null,null,"Existing R-Value: ",null,"New R-Value:"]
[null,null,null,null,null,null,"Bonus incentive:",null,{"$f":"G15*H14","v":0}]
[null,null,null,null,null,null,0.3]
[null," Above Deck \n Roof Insulation,\n R-0 to at least R-15",null,null,null,null,2.85,null,{"$f":"G16*H16","v":0},0]
[null,null,"Existing R-Value: ",null,"New R-Value:"]
[null,null,null,null,null,null,"Bonus incentive:",null,{"$f":"G19*H18","v":0}]
[null,null,null,null,null,null,1.5]
[null," Above Deck \n Roof Insulation,\n R-0 to at least R-30",null,null,null,null,2.85,null,{"$f":"G20*H20","v":0},0]
[null,null,"Existing R-Value: ",null,"New R-Value:"]
[null,null,null,null,null,null,"Bonus incentive:",null,{"$f":"G23*H22","v":0}]
[null,null,null,null,null,null,1]
[null," Above Deck\n Roof Insulation,\n R-5 or less\n to at least R-30",null,null,null,null,1,null,{"$f":"G24*H24","v":0},0]
[null,null,"Existing R-Value: ",null,"New R-Value:"]
[null," Wall Insulation,\n R-6 or less\n to at least R-20",null,null,null,null,1.3,null,{"$f":"G26*H26","v":0},0]
[null,null,"Existing R-Value: ",null,"New R-Value:"]
[null,null,null,null,null,null,"Bonus incentive:",null,{"$f":"G29*H28","v":0}]
[null,null,null,null,null,null,0.7]
[]
[]
[null,"Insulation continued"]
[null,"EQUIPMENT","REQUIREMENTS",null,null,null,"INCENTIVE PER UNIT","QUANTITY","INCENTIVE TOTAL","INSTALLED COST"]
[null," Pipe Insulation  "]
[]
[null,null,"Pipe Diameter:"]
[]
[null,null,"Piping serving domestic hot water",null,null,null,18,null,{"$f":"G38*H38","v":0}]
[null,null,null,null,null,null,"Bonus incentive:",null,{"$f":"H39*G40","v":0}]
[null,null,null,null,null,null,11]
[null,null,"Piping serving low or medium pressure steam (at most 200 psig)",null,null,null,25,null,{"$f":"G41*H41","v":0}]
[null,null,null,null,null,null,25,null,{"$f":"H42*G43","v":0}]
[null,null,null,null,null,null,25]
[null,null,"Piping serving heating hot water",null,null,null,25,null,{"$f":"G44*H44","v":0}]
[null,null,null,null,null,null,25,null,{"$f":"H45*G46","v":0}]
[null,null,null,null,null,null,25]
[null,null,null,null,null,null,"Bonus incentive:",null,{"$f":"H47*G48","v":0}]
[null,null,null,null,null,null,7]
[]
[null,"TOTALS FOR INSULATION",null,null,null,null,null,null,"TOTAL \nINCENTIVES","TOTAL\nINSTALLED COST"]
[null,null,null,null,null,null,null,null,{"$f":"SUM(I12:I29,I38:I48)","v":0},{"$f":"SUM(J12:J29,J38:J48)","v":0}]

{"sheet":"Eligible Spaces","index":7,"n_rows":25,"n_cols":1,"rows_kept":25,"cut":false,"hidden":true,"merged":[]}
["(Select)"]
["Arcade"]
["Art classroom"]
["Bank vaults/safe deposit room"]
["Coin-operated Laundromat"]
["Commercial Laundromat"]
["Computer room (without printing)"]
["Copy/printing room"]
["Grocery Store"]
["Guard Stations"]
["Health club/weight room"]
["Hotel Rooms"]
["Library"]
["Main entry lobby"]
["Medical operating room"]
["Medical procedure room"]
["Office spaces"]
["Other"]
["Patient room"]
["Pet shop (animal areas) "]
["Photo studio"]
["Physical therapy"]
["Recovery and ICU area"]
["Sales floor (except mall common areas)"]
["Wood/metal shop"]

{"sheet":"Lookups","index":8,"n_rows":54,"n_cols":2,"rows_kept":54,"cut":false,"hidden":true,"merged":[]}
["Heat"]
[0,"None"]
[1,"Electric"]
[2,"Gas"]
[3,"Other"]
[]
[]
["Building Use Type"]
["(select)"]
["Assembly"]
["Athletic Club"]
["Auto Services"]
["College/University"]
["Data Center"]
["Grocery"]
["Hospital"]
["Laundry / Dry Cleaners"]
["Lodging / Hotel / Motel"]
["Manufacturing"]
["Multifamily / Residential"]
["Office"]
["Other"]
["Parking Structure"]
["Religious / Spiritual"]
["Restaurant"]
["Retail"]
["Retirement Home"]
["Schools K-12"]
["Warehouse"]
[]
[]
["Electric Utility"]
["(select)"]
["PGE"]
["Pacific Power"]
["Other"]
[]
["Gas Utility"]
["(select)"]
["NWN"]
["Other"]
[]
["Fuel Source"]
["(select)"]
["Electricity"]
["Gas"]
["Other"]
[]
["Project Type"]
[1,"Existing Buildings"]
[2,"New Buildings"]
[3,"Existing Multifamily Buildings"]
[4,"New Multifamily Buildings"]
[5,"Greenhouses"]

{"sheet":"Grocery Equipment","index":9,"n_rows":27,"n_cols":8,"rows_kept":27,"cut":false,"hidden":false,"merged":[[11,4,14,7],[25,1,26,5],[12,2,13,3],[21,5,22,5],[11,1,16,1],[21,6,22,6],[21,7,22,7],[20,2,22,3],[18,2,19,3],[23,2,23,3],[17,1,23,1],[10,2,10,3],[11,2,11,3],[17,2,17,3],[16,2,16,3],[15,2,15,3]]}
[]
[null,"Existing Buildings Standard Incentives ¾ NW Natural Washington"]
[null,"Commercial Buildings | Incentive Application | Form 120P-WA-EB"]
[]
[]
[]
[null,"TRC is a Program Management Contractor for Energy Trust of Oregon.",null,null,"Program Use Only",null,null,{"$f":"Version","v":"v2025.2"}]
[null,null,null,null,"Reference ID",{"$f":"IF(ReferenceID=\"\",\"\",ReferenceID)","v":""},"PTID",{"$f":"IF(PTID=\"\",\"\",PTID)","v":""}]
[]
[null,"Grocery"]
[null,"EQUIPMENT","REQUIREMENTS",null,"INCENTIVE PER UNIT","QUANTITY","INCENTIVE TOTAL","INSTALLED COST"]
[null," Doors on Open\n Freezers or Open\n Refrigerated Cases"]
[]
[]
[null,null,null,"OR  "]
[null,null,"Medium Temperature",null,350,null,{"$f":"E16*F16","v":0}]
[null,null,"Low Temperature",null,200,null,{"$f":"E17*F17","v":0}]
[null," New Cooler Cases\n with Doors"]
[]
[]
[null,null,"Vertical cases (remote-condensing) - Coolers only",null,150,null,{"$f":"F21*E21","v":0}]
[null,null,null,null,"Bonus incentive:",null,{"$f":"E23*F22","v":0}]
[null,null,null,null,79]
[null,null,"Horizontal cases (remote-condensing) - Coolers or Freezers",null,150,null,{"$f":"F24*E24","v":0}]
[]
[null,"TOTALS FOR GROCERY",null,null,null,null,"TOTAL \nINCENTIVES","TOTAL\nINSTALLED COST"]
[null,null,null,null,null,null,{"$f":"SUM(G16:G17,G21:G24)","v":0},{"$f":"SUM(H16:H17,H21:H24)","v":0}]

{"sheet":"Greenhouses","index":10,"n_rows":19,"n_cols":8,"rows_kept":19,"cut":false,"hidden":false,"merged":[[17,1,18,5],[10,2,10,3],[11,2,11,3],[12,2,12,3],[13,2,13,3],[14,2,14,3],[15,2,15,3]]}
[]
[null,"Existing Greenhouses Standard Incentives - NW Natural Washington"]
[null,"Commercial Buildings | Incentive Application | Form 120P-WA-EB"]
[]
[null,"To be completed by Participant"]
[]
[null,"TRC is a Program Management Contractor for Energy Trust of Oregon.",null,null,"Program Use Only",null,null,{"$f":"Version","v":"v2025.2"}]
[null,null,null,null,"Reference ID",{"$f":"IF(ReferenceID=\"\",\"\",ReferenceID)","v":""},"PTID",{"$f":"IF(PTID=\"\",\"\",PTID)","v":""}]
[]
[null,"Greenhouses"]
[null,"EQUIPMENT","REQUIREMENTS",null,"INCENTIVE PER UNIT","QUANTITY","INCENTIVE TOTAL","INSTALLED COST"]
[null," Thermal Curtains",null,null,1.1499999999999999,null,{"$f":"E12*F12","v":0}]
[null," Infrared (IR)\n Polyethylene\n Greenhouse Film",null,null,0.08,null,0]
[null," Greenhouse\n Controller",null,null,0.1,null,0]
[null," Under-Bench\n Heating",null,null,2.19,null,0]
[null," Greenhouse\n Condensing Unit\n Heater",null,null,5,null,0]
[]
[null,"TOTALS FOR GREENHOUSES",null,null,null,null,"TOTAL \nINCENTIVES","TOTAL\nINSTALLED COST"]
[null,null,null,null,null,null,{"$f":"SUM(G12:G16)","v":0},{"$f":"SUM(H12:H16)","v":0}]

{"sheet":"Admin Tools","index":11,"n_rows":0,"n_cols":0,"rows_kept":0,"cut":false,"hidden":false,"merged":[]}